Cogmind - Beta 13 @@@ ROGUE MODE // 2024.04.01 @ 04:21:42 Player: Zirov Result: Self-destructed Performance ------------- Evolutions (2) 1000 Regions Visited (4) 800 Robots Destroyed (51) 255 Value Destroyed (1094) 1094 Prototype IDs (5) 100 Alien Tech Used (0) 0 Bonus (-156) -156 TOTAL SCORE: 3093 Bonus ------- Follower Combat Kills 93 Friendly Fire -249 Cogmind --------- Core Integrity 516/550 Matter 233/300 Energy 250/250 System Corruption 0% Temperature Cool (27) Movement Treading (160) Location -8/Materials Parts ------- > --- POWER (1) -------- Ion Engine > --- PROPULSION (4) --- Light Treads Light Treads Improved Treads > --- UTILITY (4) ------ Improved Heat Sink Large Storage Unit Seismic Detector > --- WEAPON (2) ------- Rocket Launcher Hammer > --- INVENTORY (15) --- Light Treads Improved Treads Improved Treads High-capacity Matter Pod (200) High-capacity Matter Pod (200) Melee Analysis Suite Light Armor Plating Hacking Suite EM Shotgun EM Shotgun Beam Rifle Assault Rifle Light Cannon Subdweller Shrapnel Launcher Peak State ------------ > --- POWER ------------ Ion Engine > --- PROPULSION ------- Light Treads Light Treads Improved Treads Improved Treads > --- UTILITY ---------- Improved Heat Sink Large Storage Unit Seismic Detector Light Armor Plating > --- WEAPON ----------- Rocket Launcher Hammer > --- INVENTORY -------- Light Treads Improved Treads Improved Treads High-capacity Matter Pod High-capacity Matter Pod Melee Analysis Suite Light Armor Plating Hacking Suite EM Shotgun EM Shotgun Assault Rifle Light Cannon Subdweller Shrapnel Launcher [Rating: 18] Favorites ----------- Power Ion Engine Engine Ion Engine Propulsion Improved Treads Treads Improved Treads Utility Large Storage Unit Device Structural Scanner Storage Large Storage Unit Protection Light Armor Plating Weapon Hammer Ballistic Gun Light Assault Rifle Ballistic Cannon Light Cannon Launcher Grenade Launcher Impact Weapon Hammer Build | -11 -10 -10 -10 -8 ------- Run | Yrd Mat Min Sub Mat Slots Evolved 4 | . . . . 4 Power . | . . . . . Propulsion 2 | . . . . 2 Utility 2 | . . . . 2 Weapon . | . . . . . Parts Attached 23 | 6 8 2 2 5 Power 3 | 1 1 . 1 . Engine 3 | 1 1 . 1 . Core . | . . . . . Reactor . | . . . . . Propulsion 7 | 2 2 . . 3 Treads 7 | 2 2 . . 3 Leg . | . . . . . Wheel . | . . . . . Hover . | . . . . . Flight . | . . . . . Utility 7 | 1 2 1 1 2 Device 3 | . 1 . . 2 Storage 2 | 1 1 . . . Processor . | . . . . . Hackware . | . . . . . Protection 2 | . . 1 1 . Artifact . | . . . . . Weapon 6 | 2 3 1 . . Energy Gun . | . . . . . Energy Cannon . | . . . . . Ballistic Gun 2 | 2 . . . . Ballistic Cannon 1 | . 1 . . . Launcher 2 | . 1 1 . . Special Weapon . | . . . . . Impact Weapon 1 | . 1 . . . Slashing Weapon . | . . . . . Piercing Weapon . | . . . . . Special Melee Weapon . | . . . . . Unidentified Prototypes . | . . . . . Parts Lost 5 | . . 1 2 2 Power 1 | . . . 1 . Propulsion 1 | . . . . 1 Utility 2 | . . . 1 1 Weapon 1 | . . 1 . . Highest Loss Streak 2 | . . 1 1 2 To Critical Strikes . | . . . . . Average Slot Usage (%) 99 | . 99 100 100 98 Engine 13 | . 14 14 14 9 Treads 28 | . 28 28 28 35 Device 7 | . 13 . . 17 Storage 13 | . 14 14 14 9 Protection 7 | . . 14 14 9 Ballistic Gun 5 | . 13 . . . Launcher 10 | . 7 14 14 9 Impact Weapon 10 | . 5 14 14 9 Naked Turns . | . . . . . Heaviest Build 36 | 12 32 34 34 36 Greatest Support 86 | 40 46 46 46 86 Greatest Overweight (x) 3 | 3 . . . . Average Overweight (x) . | . . . . . Largest Inventory Capacity 15 | 8 15 15 15 15 Average Capacity 13 | 7 10 15 15 15 Most Carried 15 | 1 15 15 14 14 Average Carried 11 | . 8 14 13 12 Final Capacity 15 | 8 15 15 15 15 Final Carried 15 | 1 15 14 13 14 Class Distribution -------------------- 100% | Mutant Dominant Class ---------------- Mutant | -10/Materials Mutant | -10/Mines Mutant | -10/Subcaves Mutant | -8/Materials Resources | -11 -10 -10 -10 -8 ----------- Run | Yrd Mat Min Sub Mat Matter Collected 1199 | 165 451 238 253 92 Remotely . | . . . . . Salvage Created 1108 | . 385 296 296 131 Parts 83 | . 21 30 20 12 Haulers Intercepted 2 | . 1 . . 1 Recyclers Shooed 1 | . 1 . . . Parts Field Recycled . | . . . . . Retrieved Matter . | . . . . . Parts Self-Destructed . | . . . . . Prevented . | . . . . . Kills | -11 -10 -10 -10 -8 ------- Run | Yrd Mat Min Sub Mat Combat Hostiles Destroyed 38 | . 10 14 10 4 Guns 7 | . 7 . . . Cannons 3 | . 3 . . . AOE 28 | . . 14 10 4 Classes Destroyed 9 | . 5 1 1 2 Worker 1 | . . . . 1 Builder 1 | . . . . 1 Tunneler 3 | . . 3 . . Hauler 2 | . 1 . . 1 Recycler 2 | . 2 . . . Watcher 3 | . 3 . . . Swarmer 17 | . 8 6 . 3 Grunt 11 | . 2 8 . 1 Subdweller 10 | . . . 10 . Thug 1 | . . . . 1 Best Kill Streak 7 | . 3 6 7 4 Combat Bots Only 7 | . 3 4 7 3 Max Kills in Single Turn 3 | . 1 2 3 3 Gunslinging . | . . . . . Exploded 3 | . . 2 3 3 Melee . | . . . . . Uniques/NPCs Destroyed . | . . . . . Combat | -11 -10 -10 -10 -8 -------- Run | Yrd Mat Min Sub Mat Hostile Shots Fired 92 | . 43 17 24 8 Missed 25 | . 10 5 7 3 Damage Taken 1164 | . 289 271 480 124 Core 184 | . 37 18 95 34 Absorbed by Shields . | . . . . . Regen/Repaired (Parts) 46 | . 46 . . . Core Remaining (%) 70 | 100 . . 40 . Volleys Fired 74 | . 41 17 8 8 Largest 2 | . 2 1 1 1 Hottest 40 | . 40 33 33 33 Shots Fired 100 | . 67 17 8 8 Gun 52 | . 52 . . . Cannon 15 | . 15 . . . Launcher 33 | . . 17 8 8 Special . | . . . . . Kinetic 67 | . 67 . . . Thermal . | . . . . . Explosive 33 | . . 17 8 8 Electromagnetic . | . . . . . Robot Hit Streak 12 | . 12 10 4 5 Robot Miss Streak 3 | . 3 1 1 1 Penetration Max . | . . . . . Secondary Targets . | . . . . . Shots Hit Robots 65 | . 46 7 6 6 Core Hits 78 | . 19 26 22 11 Critical Kills 1 | . 1 . . . Critical Parts Destroyed 1 | . 1 . . . Critical Strikes 6 | . 6 . . . Destroy 2 | . 2 . . . Blast 4 | . 4 . . . Melee Attacks 22 | . 8 14 . . Impact 22 | . 8 14 . . Slashing . | . . . . . Piercing . | . . . . . Sneak Attacks 1 | . 1 . . . Combat Hostiles . | . . . . . Follow-up Attacks . | . . . . . Damage Inflicted 3517 | . 574 947 1397 599 Guns 262 | . 262 . . . Cannons 198 | . 198 . . . Explosions 2943 | . . 947 1397 599 Melee 114 | . 114 . . . Ramming . | . . . . . Kinetic 460 | . 460 . . . Thermal . | . . . . . Explosive 2943 | . . 947 1397 599 Electromagnetic . | . . . . . Impact 114 | . 114 . . . Slashing . | . . . . . Piercing . | . . . . . Highest Corruption . | . . . . . Average Corruption . | . . . . . Corruption Purged . | . . . . . Corruption Blocked . | . . . . . Overload Shots . | . . . . . Overflow Damage 64 | . 17 38 . 9 Projectiles . | . . . . . Explosions 47 | . . 38 . 9 Melee 17 | . 17 . . . Knockbacks 3 | . 3 . . . Impact . | . . . . . Kinetic 2 | . 2 . . . Secondary 1 | . 1 . . . Self-Inflicted Damage 275 | . . 142 79 54 Shots 14 | . . 8 4 2 Rammed . | . . . . . Targets Rammed . | . . . . . Kicked . | . . . . . Crushed . | . . . . . Highest Temperature 12 | . 6 12 . . Average Temperature 6 | . 6 6 . . Received Heat Transfer 177 | . 30 48 45 54 Siege Activations . | . . . . . Robots Corrupted . | . . . . . Combat Hostiles . | . . . . . Parts Fried 3 | . 3 . . . Impact Corruptions 2 | . 2 . . . Robots Melted . | . . . . . Combat Hostiles . | . . . . . Parts Melted . | . . . . . Heat Transferred . | . . . . . Parts Sabotaged . | . . . . . Parts Stolen . | . . . . . Parts Stripped . | . . . . . Power Chain Reactions . | . . . . . Alert | -11 -10 -10 -10 -8 ------- Run | Yrd Mat Min Sub Mat Peak Influence 217 | . 207 217 . 192 Initial 18 | . . 18 . . Average 98 | . 93 110 . 107 Maximum Alert Level 1 | . 1 1 . . Low Security (%) 91 | 100 91 88 . 100 Level 1 8 | . 8 11 . . Level 2 . | . . . . . Level 3 . | . . . . . Level 4 . | . . . . . Level 5 . | . . . . . High Security . | . . . . . Max Security . | . . . . . Squads Dispatched 1 | . 1 . . . Investigation 1 | . 1 . . . Extermination . | . . . . . Reinforcement . | . . . . . Assault . | . . . . . Garrison . | . . . . . Intercept . | . . . . . Searches Triggered . | . . . . . Construction Impeded . | . . . . . Haulers Reinforced . | . . . . . Active Scanning Responses . | . . . . . Cargo Convoy Interrupts . | . . . . . Stealth | -11 -10 -10 -10 -8 --------- Run | Yrd Mat Min Sub Mat Distress Signals 1 | . 1 . . . Communications Jammed . | . . . . . Distress Signals . | . . . . . Times Spotted 49 | . 17 10 16 6 Peak Tracking Total 12 | . 3 3 12 4 Tactical Retreats . | . . . . . Traps | -11 -10 -10 -10 -8 ------- Run | Yrd Mat Min Sub Mat Traps Triggered 1 | . 1 . . . Indirectly . | . . . . . Trap Hack Attempts . | . . . . . Triggered . | . . . . . Disarmed . | . . . . . Reprogrammed . | . . . . . Reused . | . . . . . Traps Extracted . | . . . . . Installed . | . . . . . Triggered 1 | . 1 . . . Machines | -11 -10 -10 -10 -8 ---------- Run | Yrd Mat Min Sub Mat Machines Disabled 2 | . . 2 . . Max in Single Turn 1 | . . 1 . . Machines Repaired . | . . . . . Machines Dismantled . | . . . . . Machines Sabotaged . | . . . . . Overloaded Fab Kills . | . . . . . Hacking | -11 -10 -10 -10 -8 --------- Run | Yrd Mat Min Sub Mat Machines Accessed 9 | . 9 . . . Terminals 8 | . 8 . . . Fabricators . | . . . . . Repair Stations 1 | . 1 . . . Recycling Units . | . . . . . Scanalyzers . | . . . . . Garrison Access . | . . . . . Total Hacks 24 | . 24 . . . Successful 14 | . 14 . . . Failed 10 | . 10 . . . Catastrophic . | . . . . . Database Lockouts . | . . . . . Manual 13 | . 13 . . . Terminals 21 | . 21 . . . Fabricators . | . . . . . Repair Stations 3 | . 3 . . . Recycling Units . | . . . . . Scanalyzers . | . . . . . Garrison Access . | . . . . . Terminal Hacks 9 | . 9 . . . Robot Analysis 2 | . 2 . . . Prototype ID Bank 4 | . 4 . . . Branch Access Points 1 | . 1 . . . Hauler Manifests 1 | . 1 . . . Registered Components 1 | . 1 . . . Fabricator Hacks . | . . . . . Repair Station Hacks 2 | . 2 . . . Scan Component 1 | . 1 . . . Repair 1 | . 1 . . . Recycling Unit Hacks . | . . . . . Scanalyzer . | . . . . . Garrison Access Hacks . | . . . . . Unauthorized Hacks 3 | . 3 . . . Terminals 3 | . 3 . . . Assimilate 1 | . 1 . . . Botnet 2 | . 2 . . . Fabricators . | . . . . . Repair Stations . | . . . . . Recycling Units . | . . . . . Scanalyzers . | . . . . . Garrison Access . | . . . . . Data Cores Recovered . | . . . . . Used . | . . . . . Hacking Detections 6 | . 6 . . . Full Trace Events . | . . . . . Feedback Events . | . . . . . Feedback Blocked . | . . . . . Robot Schematics Acquired . | . . . . . Robots Built . | . . . . . Authchips . | . . . . . Time . | . . . . . Total Robot Build Rating . | . . . . . Part Schematics Acquired . | . . . . . Parts Built . | . . . . . Authchips . | . . . . . Time . | . . . . . Total Part Build Rating . | . . . . . Parts Repaired 1 | . 1 . . . Time 13 | . 13 . . . Parts Recycled . | . . . . . Recycled Matter . | . . . . . Retrieved Matter . | . . . . . Retrieved Components . | . . . . . Parts Scanalyzed . | . . . . . Part Schematics Acquired . | . . . . . Parts Damaged . | . . . . . Bothacking | -11 -10 -10 -10 -8 ------------ Run | Yrd Mat Min Sub Mat Used RIF Installer . | . . . . . Robots Hacked . | . . . . . Non-combat . | . . . . . Combat . | . . . . . Robot Hacks Applied . | . . . . . Relay Couplers Released . | . . . . . Fabnet Peak Effective % . | . . . . . Robots Rewired . | . . . . . Allies Hacked . | . . . . . Hacks Repelled . | . . . . . Allies | -11 -10 -10 -10 -8 -------- Run | Yrd Mat Min Sub Mat Total Allies 2 | . 1 1 . . Largest Group 2 | . 1 2 2 1 Highest-Rated Group 40 | . 10 40 40 31 Highest-Rated Ally 31 | . 10 31 31 31 Total Orders . | . . . . . Ally Attacks 12 | . . . 9 3 Total Damage 212 | . . . 146 66 Kills 3 | . . . 2 1 Allies Corrupted . | . . . . . Allies Melted . | . . . . . Intel | -11 -10 -10 -10 -8 ------- Run | Yrd Mat Min Sub Mat Robot Analysis Total 2 | . 2 . . . Derelict Logs Recovered 1 | . . 1 . . Drone Launches . | . . . . . Drone Recoveries . | . . . . . Exploration | -11 -10 -10 -10 -8 ------------- Run | Yrd Mat Min Sub Mat Turns Passed 3206 | 66 1301 979 602 258 Spaces Moved 1744 | 37 652 560 358 137 Core 11 | 11 . . . . Treads 1733 | 26 652 560 358 137 Legs . | . . . . . Wheels . | . . . . . Hover . | . . . . . Flight . | . . . . . Fastest Speed 50 | 50 160 160 160 160 Average Speed 159 | 154 160 160 160 160 Slowest Speed 200 | 200 160 160 160 160 Overloaded Moves . | . . . . . Propulsion Burnouts . | . . . . . Robots Hopped . | . . . . . Cave-ins Triggered . | . . . . . Exploration Rate (%) 46 | 3 99 94 23 12 Regions Visited 4 Branch Regions 2 Pre-discovered Areas 1 | . . . 1 . Known Exits Taken 1 | . 1 . . . Unknown Exits Taken 3 | 1 . 1 1 . Scrap Searched 4 | . . 1 3 . Spaces Dug 13 | . 2 11 . . Terrain Destroyed 203 | . 2 116 27 58 Melee 2 | . 2 . . . Projectile . | . . . . . AOE 201 | . . 116 27 58 Terrain Rammed . | . . . . . Walls Destroyed . | . . . . . Machines Disabled . | . . . . . Actions | -11 -10 -10 -10 -8 --------- Run | Yrd Mat Min Sub Mat Total 2030 | 43 839 602 379 167 Wait 137 | . 107 6 11 13 Move 1740 | 36 651 559 357 137 Hop . | . . . . . Pick Up 25 | 1 17 2 1 4 Fast Attach 8 | 6 2 . . . Attach 7 | . . 1 2 4 Detach . | . . . . . Swap 8 | . 6 1 . 1 Drop 9 | . 7 2 . . Fire 74 | . 41 17 8 8 Melee 22 | . 8 14 . . Ram . | . . . . . Kick . | . . . . . Crush . | . . . . . Escape Stasis . | . . . . . Rewire . | . . . . . Trap . | . . . . . Miscellaneous . | . . . . . Route ------- -11/Scrapyard -10/Materials (discovered 5 exits: [*Mat x3] / *Min x2) -10/Mines (discovered 2 exits: [*Mat] / [*Sub]) -10/Subcaves -8/Materials History --------- Turn | Location | Event 14 | -11/Scrapyard | Discovered new exit (range 16) 67 | -11/Scrapyard | Entered Materials 312 | -10/Materials | Build established: Mutant 549 | -10/Materials | Discovered new exit (range 15) 638 | -10/Materials | Discovered new exit (range 7) 1042 | -10/Materials | Repaired Lgt. Treads 1051 | -10/Materials | Discovered new exit (range 8) 1130 | -10/Materials | Discovered new exit (range 3) 1298 | -10/Materials | Identified exit to Mines 1368 | -10/Materials | Entered Mines 1368 | -10/Mines | Accompanied by 1 ally 1401 | -10/Mines | Received a Rocket Launcher from a helpful Derelict 1541 | -10/Mines | Discovered new exit (range 12) 1796 | -10/Mines | Learned 4 Materials zone layouts 1809 | -10/Mines | Excavation squad dispatched 1809 | -10/Mines | A large section of the Mines collapsed 2268 | -10/Mines | Discovered new exit (range 15) 2285 | -10/Mines | Escorted by a lone wolf Derelict 2347 | -10/Mines | Entered Subcaves 2347 | -10/Subcaves | Accompanied by 2 allies 2451 | -10/Subcaves | Ambushed by swarm of Subdwellers 2451 | -10/Subcaves | Ambushed by Subdwellers from Twisted Machinery 2451 | -10/Subcaves | Ambushed by Subdwellers from Twisted Machinery 2453 | -10/Subcaves | Ambushed by Subdwellers from Twisted Machinery 2453 | -10/Subcaves | Ambushed by Subdwellers from Twisted Machinery 2453 | -10/Subcaves | Ambushed by Subdwellers from Twisted Machinery 2486 | -10/Subcaves | Destroyed 7 combat bots 2663 | -10/Subcaves | Core integrity fell below 50% 2912 | -10/Subcaves | Discovered new exit (range 14) 2929 | -10/Subcaves | Learned location of Zion (-7) 2929 | -10/Subcaves | Met a Zionite searching for "candidates" 2949 | -10/Subcaves | Entered Materials 2949 | -8/Materials | Accompanied by 1 ally 2949 | -8/Materials | Evolved 4 slots: Propulsion x2, Utility x2 3207 | -8/Materials | Self-destructed Last Messages --------------- 02982_ The unstable cave ceiling collapses. 02997_ Acquired 4 matter. 03002_ Acquired 74 matter. 03045_ Acquired Lgt. Armor Plating. 03058_ Acquired Melee Analysis Suite. 03069_ Connecting with Scanalyzer... 03069_ Current location identified: Materials 03083_ Acquired 10 matter. 03087_ Acquired Beam Rifle. 03192_ QL-RYJ(g): "Mission, incomplete...*fzzt*" 03192_ QL-RYJ(g) destroyed. 03194_ U-05 Engineer destroyed. 03194_ A-02 Transporter destroyed. 03198_ G-47 Trooper destroyed. 03200_ K-01 Serf destroyed. 03205_ Imp. Treads destroyed. 03205_ Destroyed Imp. Treads. 03205_ Lgt. Armor Plating destroyed. 03205_ Destroyed Lgt. Armor Plating. 03207_ Critical hit (Burn: +37). Map ----- +----------------------------------------------------+ | " ## "T" #?????????????????????????????? | | """ ## """ #?????????????????????????????? | | "" ## """ #?????????????????????????????? | | """ ## """ #?????????????????????????????? | | "" ## ?????????????????????????????? | | """ ## #?????????????????????????????? | | """ ## #?????????????????????????????? | | """ ###+#######?????????????????????????????? | | " ?????????????????????????????? | | ?????????????????????????????? | | ??? #??????????????????????? | | " ###+#######?##[[ ??????????????????????? | | """ # # % ??????????????????????? | | "" # # [ ??????????????????????? | | """ # #? = ??????????????????????? | | "" # """"""" #? [??????????????????????? | | """ # """"""" #? g * ??????????????????????# | | ?????????????????????? ??????????????????????# | | ?????????????????????? ??????????????????????# | | ?????????????????????## ###????????????????????# | | ?????????????????????# ##???????????????????# | | ???????????????####### #####???????????????# | | ???????????##### #???????????????# | | ???????????? u """ #???????????????# | | ???????????????# "Y" #???????????????# | | ?????????????????????# @ #???????????????# | | ?????????????? # #????#####??????? | | ?????????????# ?"" # #???## # ##?????? | | ????????????????""" # % #####+################## | | ????????????????""" ?# [ = %* | | ????????????????""" ??# ################# | | ????????????????"""???# #???### #??????? | | ???????????????? ????# ###+####?????####??????? | | ??????????????????????# # #???????????????? | | ??????????????????????# # """ #???????????????? | | ??????????????????????# # """ #???????????????? | | ??????????????????????##### """ #???????????????? | | ??????????????????????????# #???????????????? | | ??????????????????????????# #???????????????? | | ??????????????????????????########???????????????? | | ?????????????????????????????????????????????????? | | ?????????????????????????????????????????????????? | | | | | | | | | | | | | | | | | +----------------------------------------------------+ Best States ------------- Heat Dissipation 45 Energy Generation 10 Energy Capacity 250 Matter Stores 300 Matter Capacity 300 Sight Range 16 Terrain Scan Density 10 Armor Coverage 150 Evasion (%) 40 Recoil Reduction 4 Item Schematics ----------------- None Robot Schematics ------------------ None Fabricated ------------ Nothing Alien Tech Used ----------------- None Achievements -------------- None Challenges ------------ None Game ------ Seed ThrowingGhostTerrabomb Manual? 0 Play Time 00:42:16 Cumulative 139.6 hours Start 2024.03.28 @ 00:11:55 End 2024.04.01 @ 04:21:42 Sessions 7 Manual Loads 0 Difficulty Rogue Special Mode None Game No. 134 Rogue 134 Adventurer 0 Explorer 0 Win Type - Total 0 Types 0/0/0/0/0/0/0/0/0 Lore% 37 Gallery% 44 Achievement% 35 Wizard Run 0 Options --------- Layout 0 ASCII 1 Keyboard 0 Movement Numpad Keybinds 0 Fullscreen 1 Font 18/SmallcapsGlow Map View 76x50 Zoom Use 1% Tactical HUD 1 Map Filters NONE Filters NONE Steam 1 RUN: 08b9b904-97c9-46c7-ad20-cc4d2cb37762